[Event "*** Titled Tuesday 3|2 Blitz"]
[Site "Chess.com"]
[Date "2017.03.07"]
[Round "3"]
[White "TheNextLevelFan"]
[Black "SergeiAza"]
[Result "0-1"]
[WhiteElo "2360"]
[BlackElo "2607"]
[TimeControl "180+2"]
[EndTime "13:37:41 PST"]
[Termination "SergeiAza won by resignation"]

1. d4 {[%clk 0:02:44.6]} 1... d5 {[%clk 0:03:00.1]} 2. c4 {[%clk 0:02:45.6]}
2... e6 {[%clk 0:03:00.8]} 3. Nf3 {[%clk 0:02:46.8]} 3... Nf6 {[%clk 0:03:01.8]}
4. Nc3 {[%clk 0:02:47.7]} 4... Be7 {[%clk 0:03:02.2]} 5. Bf4 {[%clk 0:02:48.5]}
5... O-O {[%clk 0:03:03.1]} 6. e3 {[%clk 0:02:50]} 6... b6 {[%clk 0:03:04.3]} 7.
Rc1 {[%clk 0:02:50.4]} 7... c5 {[%clk 0:03:03.6]} 8. cxd5 {[%clk 0:02:50.1]}
8... Nxd5 {[%clk 0:03:03.6]} 9. Nxd5 {[%clk 0:02:50.9]} 9... exd5 {[%clk
0:03:04.7]} 10. Bd3 {[%clk 0:02:51.3]} 10... c4 {[%clk 0:03:03]} 11. Bb1 {[%clk
0:02:49.9]} 11... Nc6 {[%clk 0:02:56.7]} 12. O-O {[%clk 0:02:50.2]} 12... Be6
{[%clk 0:02:52.5]} 13. a3 {[%clk 0:02:46.3]} 13... b5 {[%clk 0:02:52.8]} 14. Qc2
{[%clk 0:02:25.7]} 14... g6 {[%clk 0:02:49.3]} 15. Qe2 {[%clk 0:02:26.2]} 15...
Re8 {[%clk 0:02:44.1]} 16. Rfd1 {[%clk 0:02:26.4]} 16... a5 {[%clk 0:02:43.1]}
17. h3 {[%clk 0:02:11.8]} 17... b4 {[%clk 0:02:42.2]} 18. axb4 {[%clk
0:02:11.6]} 18... axb4 {[%clk 0:02:42.8]} 19. e4 {[%clk 0:02:07.3]} 19... Qd7
{[%clk 0:02:39.1]} 20. Ne5 {[%clk 0:02:07.2]} 20... Nxe5 {[%clk 0:02:37.9]} 21.
Bxe5 {[%clk 0:02:03]} 21... f6 {[%clk 0:02:35]} 22. Bf4 {[%clk 0:02:01.2]} 22...
Bf8 {[%clk 0:02:30.5]} 23. Qf3 {[%clk 0:01:52.6]} 23... Rad8 {[%clk 0:02:22.6]}
24. Bg3 {[%clk 0:01:48.9]} 24... Qf7 {[%clk 0:02:19.3]} 25. Bh4 {[%clk
0:01:45.6]} 25... Bg7 {[%clk 0:01:59.5]} 26. e5 {[%clk 0:01:46]} 26... g5 {[%clk
0:01:49.4]} 27. exf6 {[%clk 0:01:25.9]} 27... gxh4 {[%clk 0:01:43.8]} 28. fxg7
{[%clk 0:01:26]} 28... Qxf3 {[%clk 0:01:45.3]} 29. gxf3 {[%clk 0:01:27.7]} 29...
Kxg7 {[%clk 0:01:45.7]} 30. Kh2 {[%clk 0:01:25.1]} 30... Bf7 {[%clk 0:01:41.2]}
31. Rg1+ {[%clk 0:01:24.3]} 31... Kf6 {[%clk 0:01:34.7]} 32. Rg4 {[%clk
0:01:17.7]} 32... Re2 {[%clk 0:01:30]} 33. Rf4+ {[%clk 0:01:15.9]} 33... Kg7
{[%clk 0:01:20.1]} 34. Rg1+ {[%clk 0:01:13.9]} 34... Bg6 {[%clk 0:01:18.9]} 35.
Bxg6 {[%clk 0:00:43.6]} 35... hxg6 {[%clk 0:01:17.6]} 36. Rxh4 {[%clk
0:00:39.5]} 36... Rxb2 {[%clk 0:01:15.2]} 37. Kg3 {[%clk 0:00:39.6]} 37... b3
{[%clk 0:01:13.4]} 0-1

[Event "*** Titled Tuesday 3|2 Blitz"]
[Site "Chess.com"]
[Date "2017.03.07"]
[Round "3"]
[White "jk13"]
[Black "amaidel"]
[Result "1-0"]
[WhiteElo "2503"]
[BlackElo "2445"]
[TimeControl "180+2"]
[EndTime "13:38:01 PST"]
[Termination "jk13 won by resignation"]

1. d4 {[%clk 0:03:02]} 1... d5 {[%clk 0:03:00.6]} 2. Bf4 {[%clk 0:03:03.4]} 2...
Nf6 {[%clk 0:03:00.5]} 3. e3 {[%clk 0:03:04.9]} 3... c5 {[%clk 0:03:01.3]} 4.
Nc3 {[%clk 0:03:04.4]} 4... a6 {[%clk 0:02:59.8]} 5. dxc5 {[%clk 0:03:04.3]}
5... e6 {[%clk 0:03:00.1]} 6. b4 {[%clk 0:03:02.9]} 6... Nc6 {[%clk 0:03:00.6]}
7. Rb1 {[%clk 0:03:02.1]} 7... Be7 {[%clk 0:02:59.1]} 8. Nf3 {[%clk 0:03:02.9]}
8... O-O {[%clk 0:02:58.6]} 9. Bd3 {[%clk 0:03:02.6]} 9... a5 {[%clk 0:02:57.3]}
10. a3 {[%clk 0:03:03]} 10... axb4 {[%clk 0:02:56.5]} 11. axb4 {[%clk
0:03:04.9]} 11... Nd7 {[%clk 0:02:23.8]} 12. Bg3 {[%clk 0:02:35.4]} 12... f5
{[%clk 0:02:21.3]} 13. Bb5 {[%clk 0:01:53.6]} 13... Bf6 {[%clk 0:02:17.8]} 14.
Ne2 {[%clk 0:01:45.6]} 14... Nce5 {[%clk 0:02:10.7]} 15. Nf4 {[%clk 0:01:19.4]}
15... Qe7 {[%clk 0:02:09.8]} 16. Nd4 {[%clk 0:01:16.7]} 16... g5 {[%clk
0:01:53.4]} 17. Nfxe6 {[%clk 0:01:16.5]} 17... f4 {[%clk 0:01:54.5]} 18. exf4
{[%clk 0:00:56.7]} 18... gxf4 {[%clk 0:01:55.2]} 19. Bxf4 {[%clk 0:00:57.6]}
19... Ng6 {[%clk 0:01:56.2]} 20. Be3 {[%clk 0:00:56]} 20... Bxd4 {[%clk
0:01:47.5]} 21. Nxd4 {[%clk 0:00:55.6]} 21... Nde5 {[%clk 0:01:42.4]} 22. O-O
{[%clk 0:00:47.5]} 22... Bg4 {[%clk 0:01:42.8]} 23. Qd2 {[%clk 0:00:46.3]} 23...
Nh4 {[%clk 0:01:20.9]} 24. f4 {[%clk 0:00:44.4]} 24... Neg6 {[%clk 0:01:15.8]}
25. Rbe1 {[%clk 0:00:45.2]} 25... Qg7 {[%clk 0:01:15.6]} 26. Kh1 {[%clk
0:00:41]} 26... Rad8 {[%clk 0:01:13]} 27. Bd3 {[%clk 0:00:38.7]} 27... Nf5
{[%clk 0:01:09.5]} 28. Nxf5 {[%clk 0:00:37.6]} 28... Bxf5 {[%clk 0:01:11.4]} 29.
Bxf5 {[%clk 0:00:38]} 29... Rxf5 {[%clk 0:01:11.9]} 30. Bd4 {[%clk 0:00:39.5]}
30... Qh6 {[%clk 0:01:12.6]} 31. g3 {[%clk 0:00:40.2]} 31... Nf8 {[%clk
0:01:07.1]} 32. Re7 {[%clk 0:00:39.2]} 32... Ne6 {[%clk 0:01:07.2]} 33. Re1
{[%clk 0:00:39.8]} 33... Nxd4 {[%clk 0:01:05.4]} 34. Qxd4 {[%clk 0:00:41.7]}
34... Rh5 {[%clk 0:01:06.5]} 35. R1e2 {[%clk 0:00:41.3]} 35... Qa6 {[%clk
0:01:03.8]} 1-0

[Event "*** Titled Tuesday 3|2 Blitz"]
[Site "Chess.com"]
[Date "2017.03.07"]
[Round "3"]
[White "ShimanovAlex"]
[Black "GMMarcinDziuba"]
[Result "1-0"]
[WhiteElo "2652"]
[BlackElo "2458"]
[TimeControl "180+2"]
[EndTime "13:38:18 PST"]
[Termination "ShimanovAlex won by checkmate"]

1. d4 {[%clk 0:03:01.9]} 1... Nf6 {[%clk 0:02:58.6]} 2. Bf4 {[%clk 0:03:02]}
2... g6 {[%clk 0:02:46.3]} 3. Nc3 {[%clk 0:03:02.2]} 3... Bg7 {[%clk 0:02:41.7]}
4. Qd2 {[%clk 0:03:02.7]} 4... d6 {[%clk 0:02:28.6]} 5. O-O-O {[%clk 0:03:03.2]}
5... h5 {[%clk 0:02:22.9]} 6. e4 {[%clk 0:03:02]} 6... c6 {[%clk 0:02:17.6]} 7.
Nf3 {[%clk 0:03:01.6]} 7... Bg4 {[%clk 0:02:16]} 8. Be2 {[%clk 0:02:57.3]} 8...
b5 {[%clk 0:02:06.3]} 9. e5 {[%clk 0:02:57]} 9... b4 {[%clk 0:01:50.1]} 10. exf6
{[%clk 0:02:57]} 10... bxc3 {[%clk 0:01:51.2]} 11. Qxc3 {[%clk 0:02:58.9]} 11...
Bxf6 {[%clk 0:01:52.1]} 12. h3 {[%clk 0:02:57.3]} 12... Be6 {[%clk 0:01:47.3]}
13. Bc4 {[%clk 0:02:52.1]} 13... Bxc4 {[%clk 0:01:43.4]} 14. Qxc4 {[%clk
0:02:54]} 14... Nd7 {[%clk 0:01:40]} 15. g4 {[%clk 0:02:52.3]} 15... Qb6 {[%clk
0:01:33]} 16. Rhe1 {[%clk 0:02:46.1]} 16... c5 {[%clk 0:01:18.2]} 17. Bg5 {[%clk
0:02:26.7]} 17... hxg4 {[%clk 0:01:12.4]} 18. hxg4 {[%clk 0:02:26.3]} 18... Kf8
{[%clk 0:00:57.4]} 19. Bxf6 {[%clk 0:02:18.3]} 19... Nxf6 {[%clk 0:00:50.6]} 20.
dxc5 {[%clk 0:01:45.5]} 20... Qxc5 {[%clk 0:00:49.8]} 21. Qxc5 {[%clk
0:01:39.9]} 21... dxc5 {[%clk 0:00:51.7]} 22. g5 {[%clk 0:01:40.4]} 22... Ng8
{[%clk 0:00:44.4]} 23. Rd7 {[%clk 0:01:39.3]} 23... Rh3 {[%clk 0:00:43.3]} 24.
Ne5 {[%clk 0:01:39.8]} 24... Rh2 {[%clk 0:00:42.5]} 25. f4 {[%clk 0:01:37.9]}
25... Rf2 {[%clk 0:00:42.6]} 26. Re4 {[%clk 0:01:37.1]} 26... a5 {[%clk
0:00:39.2]} 27. b3 {[%clk 0:01:36.6]} 27... Rb8 {[%clk 0:00:36.1]} 28. Rd5
{[%clk 0:01:27.7]} 28... Rb4 {[%clk 0:00:35.5]} 29. Nc4 {[%clk 0:01:24.8]} 29...
f5 {[%clk 0:00:30.2]} 30. Re6 {[%clk 0:01:05.8]} 30... Kf7 {[%clk 0:00:07.4]}
31. Ra6 {[%clk 0:01:05.3]} 31... Rxf4 {[%clk 0:00:08.2]} 32. Ne5+ {[%clk
0:01:05.3]} 32... Kg7 {[%clk 0:00:09.6]} 33. Rxg6+ {[%clk 0:01:05.9]} 33... Kh7
{[%clk 0:00:11]} 34. Rd8 {[%clk 0:01:05]} 34... Rbe4 {[%clk 0:00:11.9]} 35.
Rdxg8 {[%clk 0:01:05.4]} 35... Rxe5 {[%clk 0:00:11.5]} 36. R6g7# {[%clk
0:01:06.5]} 1-0

[Event "*** Titled Tuesday 3|2 Blitz"]
[Site "Chess.com"]
[Date "2017.03.07"]
[Round "3"]
[White "1e41-0"]
[Black "LuckyTiger"]
[Result "1-0"]
[WhiteElo "2329"]
[BlackElo "2471"]
[TimeControl "180+2"]
[EndTime "13:38:19 PST"]
[Termination "1e41-0 won by resignation"]

1. e4 {[%clk 0:03:02]} 1... c5 {[%clk 0:03:01.5]} 2. Nf3 {[%clk 0:03:02.3]} 2...
d6 {[%clk 0:03:03.1]} 3. d4 {[%clk 0:03:03.2]} 3... Nf6 {[%clk 0:03:04.1]} 4.
Nc3 {[%clk 0:03:02.2]} 4... cxd4 {[%clk 0:03:05.7]} 5. Nxd4 {[%clk 0:03:03.4]}
5... a6 {[%clk 0:03:07.2]} 6. h3 {[%clk 0:03:04]} 6... e5 {[%clk 0:02:59.3]} 7.
Nde2 {[%clk 0:03:03.5]} 7... h5 {[%clk 0:03:00.5]} 8. Bg5 {[%clk 0:03:03]} 8...
Be6 {[%clk 0:03:01.2]} 9. g3 {[%clk 0:03:03.7]} 9... Nbd7 {[%clk 0:02:58.2]} 10.
Bg2 {[%clk 0:03:04.6]} 10... Be7 {[%clk 0:02:49.4]} 11. O-O {[%clk 0:02:53.9]}
11... Rc8 {[%clk 0:02:44.5]} 12. Qd2 {[%clk 0:02:47.4]} 12... b5 {[%clk
0:02:33.5]} 13. a3 {[%clk 0:02:45.4]} 13... Nb6 {[%clk 0:02:00.5]} 14. Rad1
{[%clk 0:02:43.6]} 14... Nc4 {[%clk 0:01:45.7]} 15. Qc1 {[%clk 0:02:44]} 15...
Qd7 {[%clk 0:01:44.9]} 16. b3 {[%clk 0:02:42.7]} 16... Nb6 {[%clk 0:01:42.8]}
17. Qd2 {[%clk 0:02:34.3]} 17... Bxh3 {[%clk 0:01:39.9]} 18. f4 {[%clk
0:02:25.8]} 18... Bxg2 {[%clk 0:01:16.6]} 19. Kxg2 {[%clk 0:02:27.7]} 19... Qc6
{[%clk 0:01:18.1]} 20. Bxf6 {[%clk 0:02:24.7]} 20... gxf6 {[%clk 0:01:13.8]} 21.
f5 {[%clk 0:02:23.8]} 21... Bf8 {[%clk 0:00:52.7]} 22. Rh1 {[%clk 0:02:23.8]}
22... Ke7 {[%clk 0:00:52.6]} 23. Qd3 {[%clk 0:02:13.7]} 23... Qb7 {[%clk
0:00:46.1]} 24. Qe3 {[%clk 0:02:13.1]} 24... Ke8 {[%clk 0:00:39.3]} 25. Qf3
{[%clk 0:02:11.9]} 25... d5 {[%clk 0:00:32.2]} 26. exd5 {[%clk 0:02:09.9]} 26...
b4 {[%clk 0:00:32.6]} 27. axb4 {[%clk 0:02:03.4]} 27... Bxb4 {[%clk 0:00:32.7]}
28. Ne4 {[%clk 0:02:04.7]} 28... Rxc2 {[%clk 0:00:31.8]} 29. Nxf6+ {[%clk
0:02:03.9]} 29... Kd8 {[%clk 0:00:33.1]} 30. Qe4 {[%clk 0:02:03.3]} 30... Rb2
{[%clk 0:00:25.3]} 31. Rb1 {[%clk 0:01:58.8]} 31... Rxb1 {[%clk 0:00:22.3]} 32.
Rxb1 {[%clk 0:02:00.4]} 32... Be7 {[%clk 0:00:24]} 33. d6 {[%clk 0:01:57.9]}
33... Qxe4+ {[%clk 0:00:18.1]} 34. Nxe4 {[%clk 0:01:59.8]} 34... Bf8 {[%clk
0:00:20]} 35. Ra1 {[%clk 0:01:59]} 35... Kc8 {[%clk 0:00:18.6]} 36. Rxa6 {[%clk
0:01:56]} 36... Kb7 {[%clk 0:00:20]} 37. Ra5 {[%clk 0:01:56.5]} 37... Rh6 {[%clk
0:00:20]} 38. f6 {[%clk 0:01:52.6]} 38... h4 {[%clk 0:00:21]} 39. Rxe5 {[%clk
0:01:52]} 39... hxg3 {[%clk 0:00:21.4]} 40. N2xg3 {[%clk 0:01:50.4]} 40... Kc6
{[%clk 0:00:21.8]} 41. Nf5 {[%clk 0:01:49]} 41... Rg6+ {[%clk 0:00:22.7]} 42.
Kf3 {[%clk 0:01:44.9]} 42... Nd7 {[%clk 0:00:24.3]} 43. Re8 {[%clk 0:01:41.6]}
43... Bh6 {[%clk 0:00:18.6]} 44. Ne7+ {[%clk 0:01:38.5]} 1-0

[Event "*** Titled Tuesday 3|2 Blitz"]
[Site "Chess.com"]
[Date "2017.03.07"]
[Round "3"]
[White "GulamaliRises"]
[Black "ZEN-22"]
[Result "0-1"]
[WhiteElo "2511"]
[BlackElo "2356"]
[TimeControl "180+2"]
[EndTime "13:38:34 PST"]
[Termination "ZEN-22 won by resignation"]

1. e4 {[%clk 0:03:02]} 1... c5 {[%clk 0:02:57.7]} 2. Nf3 {[%clk 0:03:02.8]} 2...
Nf6 {[%clk 0:02:58.9]} 3. e5 {[%clk 0:03:01.7]} 3... Nd5 {[%clk 0:02:59.7]} 4.
Nc3 {[%clk 0:03:03.2]} 4... Nb4 {[%clk 0:03:00.2]} 5. a3 {[%clk 0:02:55.7]} 5...
N4c6 {[%clk 0:03:00.5]} 6. Bc4 {[%clk 0:02:52.8]} 6... a6 {[%clk 0:02:57.2]} 7.
O-O {[%clk 0:02:51]} 7... b5 {[%clk 0:02:57.7]} 8. Bd5 {[%clk 0:02:44.4]} 8...
e6 {[%clk 0:02:58.1]} 9. Bxc6 {[%clk 0:02:45.5]} 9... Nxc6 {[%clk 0:02:59.3]}
10. Re1 {[%clk 0:02:46]} 10... Qc7 {[%clk 0:02:59.3]} 11. d3 {[%clk 0:02:44.8]}
11... Be7 {[%clk 0:02:56.8]} 12. Bf4 {[%clk 0:02:45.7]} 12... f5 {[%clk
0:02:56.8]} 13. exf6 {[%clk 0:02:20.3]} 13... Qxf4 {[%clk 0:02:56.7]} 14. fxe7
{[%clk 0:02:21.9]} 14... Bb7 {[%clk 0:02:53.3]} 15. Ne4 {[%clk 0:02:16.7]} 15...
c4 {[%clk 0:02:36.4]} 16. dxc4 {[%clk 0:02:14.4]} 16... Kxe7 {[%clk 0:02:32.3]}
17. c5 {[%clk 0:02:15.2]} 17... Na5 {[%clk 0:02:19.5]} 18. Qe2 {[%clk
0:02:02.7]} 18... Nc4 {[%clk 0:01:57.9]} 19. b3 {[%clk 0:01:58.9]} 19... Ne5
{[%clk 0:01:55.7]} 20. Nxe5 {[%clk 0:01:59.7]} 20... Qxe5 {[%clk 0:01:56.2]} 21.
b4 {[%clk 0:01:44.2]} 21... Bxe4 {[%clk 0:01:28.5]} 22. Qxe4 {[%clk 0:01:44.1]}
22... Qxe4 {[%clk 0:01:30.4]} 23. Rxe4 {[%clk 0:01:45.6]} 23... a5 {[%clk
0:01:31.5]} 24. Rd1 {[%clk 0:01:44.7]} 24... axb4 {[%clk 0:01:32.3]} 25. axb4
{[%clk 0:01:46.6]} 25... Ra2 {[%clk 0:01:32.4]} 26. Red4 {[%clk 0:01:44.9]}
26... Rd8 {[%clk 0:01:28.9]} 27. c3 {[%clk 0:01:44.1]} 27... Rc2 {[%clk
0:01:28.9]} 28. R4d3 {[%clk 0:01:44.8]} 28... d5 {[%clk 0:00:54.9]} 29. cxd6+
{[%clk 0:01:45.1]} 29... Kd7 {[%clk 0:00:56.4]} 30. Rf3 {[%clk 0:01:43.3]} 30...
Kc6 {[%clk 0:00:54.8]} 31. Rfd3 {[%clk 0:01:40.1]} 31... Kd7 {[%clk 0:00:40.7]}
32. g3 {[%clk 0:01:41.1]} 32... Rf8 {[%clk 0:00:39.6]} 33. R1d2 {[%clk
0:01:41.1]} 33... Rxd2 {[%clk 0:00:29.1]} 34. Rxd2 {[%clk 0:01:42.2]} 34... Rf3
{[%clk 0:00:30.6]} 35. Ra2 {[%clk 0:01:13.9]} 35... Kxd6 {[%clk 0:00:20.6]} 36.
Ra5 {[%clk 0:01:09.4]} 36... Kc6 {[%clk 0:00:20.1]} 37. Ra7 {[%clk 0:01:10.3]}
37... Rxc3 {[%clk 0:00:19.2]} 38. Rd7 {[%clk 0:01:10.6]} 38... Kxd7 {[%clk
0:00:19.5]} 0-1

[Event "*** Titled Tuesday 3|2 Blitz"]
[Site "Chess.com"]
[Date "2017.03.07"]
[Round "3"]
[White "Vrolijk"]
[Black "Grootneus"]
[Result "1-0"]
[WhiteElo "2316"]
[BlackElo "2139"]
[TimeControl "180+2"]
[EndTime "13:38:35 PST"]
[Termination "Vrolijk won by resignation"]

1. d4 {[%clk 0:03:02]} 1... Nf6 {[%clk 0:03:00.6]} 2. c4 {[%clk 0:03:01.2]} 2...
c5 {[%clk 0:03:01.5]} 3. d5 {[%clk 0:02:57.1]} 3... e6 {[%clk 0:03:02.4]} 4. Nc3
{[%clk 0:02:57.6]} 4... exd5 {[%clk 0:03:03.7]} 5. cxd5 {[%clk 0:02:59.5]} 5...
d6 {[%clk 0:03:05.4]} 6. e4 {[%clk 0:03:00.4]} 6... g6 {[%clk 0:03:07.1]} 7. f4
{[%clk 0:03:00.7]} 7... Bg7 {[%clk 0:03:08]} 8. Bb5+ {[%clk 0:03:02]} 8... Nfd7
{[%clk 0:03:07.9]} 9. Bd3 {[%clk 0:03:03]} 9... O-O {[%clk 0:03:07.8]} 10. Nf3
{[%clk 0:03:04]} 10... a6 {[%clk 0:03:09]} 11. a4 {[%clk 0:03:04.1]} 11... Re8
{[%clk 0:03:09.6]} 12. O-O {[%clk 0:03:04.6]} 12... Nf6 {[%clk 0:02:45.1]} 13.
h3 {[%clk 0:03:01.3]} 13... Nbd7 {[%clk 0:02:40.8]} 14. Be3 {[%clk 0:03:00.1]}
14... b5 {[%clk 0:02:34.7]} 15. axb5 {[%clk 0:03:00.3]} 15... c4 {[%clk
0:02:19.3]} 16. Bc2 {[%clk 0:02:25.8]} 16... Bb7 {[%clk 0:01:34.2]} 17. bxa6
{[%clk 0:01:52.8]} 17... Rxa6 {[%clk 0:01:35.1]} 18. Rxa6 {[%clk 0:01:52.3]}
18... Bxa6 {[%clk 0:01:37]} 19. Nd4 {[%clk 0:01:48.7]} 19... Qb8 {[%clk
0:01:33.5]} 20. Qc1 {[%clk 0:01:45.6]} 20... Bb7 {[%clk 0:01:20.1]} 21. Bf2
{[%clk 0:01:21.6]} 21... Nc5 {[%clk 0:01:13.4]} 22. Re1 {[%clk 0:01:20.9]} 22...
Ba8 {[%clk 0:00:42.8]} 23. Nf3 {[%clk 0:01:15.9]} 23... Nb3 {[%clk 0:00:37.9]}
24. Qd1 {[%clk 0:01:14.8]} 24... Na5 {[%clk 0:00:30.6]} 25. Ba4 {[%clk 0:01:10]}
25... Re7 {[%clk 0:00:28.1]} 26. e5 {[%clk 0:01:09.6]} 26... Nh5 {[%clk
0:00:25.6]} 27. Qd2 {[%clk 0:01:04.2]} 27... Bh6 {[%clk 0:00:25.5]} 28. g3
{[%clk 0:01:00.1]} 28... Rb7 {[%clk 0:00:20.3]} 29. e6 {[%clk 0:00:53.5]} 29...
Rxb2 {[%clk 0:00:19]} 30. e7 {[%clk 0:00:52.1]} 30... Rxd2 {[%clk 0:00:13.2]}
31. e8=Q+ {[%clk 0:00:52.9]} 31... Kg7 {[%clk 0:00:12.6]} 32. Qxb8 {[%clk
0:00:52.6]} 1-0

[Event "*** Titled Tuesday 3|2 Blitz"]
[Site "Chess.com"]
[Date "2017.03.07"]
[Round "3"]
[White "Paralinch"]
[Black "Feegus"]
[Result "1-0"]
[WhiteElo "2610"]
[BlackElo "2378"]
[TimeControl "180+2"]
[EndTime "13:38:53 PST"]
[Termination "Paralinch won by resignation"]

1. e4 {[%clk 0:03:02]} 1... e6 {[%clk 0:03:00.5]} 2. d4 {[%clk 0:03:02.8]} 2...
d5 {[%clk 0:03:01.7]} 3. Nd2 {[%clk 0:03:04.7]} 3... c5 {[%clk 0:03:00.1]} 4.
Ngf3 {[%clk 0:03:02.9]} 4... cxd4 {[%clk 0:02:56.5]} 5. Nxd4 {[%clk 0:02:59.5]}
5... Nf6 {[%clk 0:02:57.2]} 6. exd5 {[%clk 0:03:00.4]} 6... Nxd5 {[%clk
0:02:58.1]} 7. N2f3 {[%clk 0:03:00.7]} 7... Bb4+ {[%clk 0:02:57.5]} 8. Bd2
{[%clk 0:03:01.5]} 8... Bxd2+ {[%clk 0:02:43.5]} 9. Qxd2 {[%clk 0:03:02.4]} 9...
O-O {[%clk 0:02:40.7]} 10. Bc4 {[%clk 0:03:02.1]} 10... Nb6 {[%clk 0:02:32.1]}
11. Bb3 {[%clk 0:02:59.2]} 11... a6 {[%clk 0:02:20]} 12. O-O {[%clk 0:02:51.1]}
12... N8d7 {[%clk 0:02:06.8]} 13. c3 {[%clk 0:02:44.6]} 13... Nf6 {[%clk
0:01:52.4]} 14. Rad1 {[%clk 0:02:39.4]} 14... Qc7 {[%clk 0:01:53]} 15. Qg5
{[%clk 0:02:37.3]} 15... h6 {[%clk 0:01:43.4]} 16. Qe5 {[%clk 0:02:36.6]} 16...
Qxe5 {[%clk 0:01:30.4]} 17. Nxe5 {[%clk 0:02:38.5]} 17... Nbd7 {[%clk
0:01:30.4]} 18. Ndf3 {[%clk 0:02:23.9]} 18... Nc5 {[%clk 0:01:22.5]} 19. Bc2
{[%clk 0:02:21.3]} 19... Bd7 {[%clk 0:01:12]} 20. Nxd7 {[%clk 0:02:04.8]} 20...
Ncxd7 {[%clk 0:01:09.6]} 21. Rd4 {[%clk 0:02:03.6]} 21... Rac8 {[%clk
0:00:54.6]} 22. Rfd1 {[%clk 0:02:03.9]} 22... Nb8 {[%clk 0:00:53.8]} 23. Ne5
{[%clk 0:01:46.3]} 23... Nc6 {[%clk 0:00:53.9]} 24. Nxc6 {[%clk 0:01:47.5]}
24... Rxc6 {[%clk 0:00:54.1]} 25. Rd6 {[%clk 0:01:46.6]} 25... Rxd6 {[%clk
0:00:44.5]} 26. Rxd6 {[%clk 0:01:48.5]} 26... Rc8 {[%clk 0:00:43.6]} 27. Bd1
{[%clk 0:01:49.5]} 27... Kf8 {[%clk 0:00:43.5]} 28. Bf3 {[%clk 0:01:50.1]} 28...
Rc7 {[%clk 0:00:44.5]} 29. Rb6 {[%clk 0:01:39.5]} 29... Nd5 {[%clk 0:00:41.1]}
30. Bxd5 {[%clk 0:01:40.4]} 30... exd5 {[%clk 0:00:42.4]} 31. Kf1 {[%clk
0:01:38.3]} 31... Ke7 {[%clk 0:00:38.8]} 32. Ke2 {[%clk 0:01:37.5]} 32... d4
{[%clk 0:00:20.3]} 33. cxd4 {[%clk 0:01:36.4]} 33... Rc2+ {[%clk 0:00:20.7]} 34.
Ke3 {[%clk 0:01:36.2]} 34... Rc7 {[%clk 0:00:20.1]} 35. d5 {[%clk 0:01:26.6]}
35... Rd7 {[%clk 0:00:18.7]} 36. Kd4 {[%clk 0:01:23.5]} 36... Kd8 {[%clk
0:00:19.2]} 37. d6 {[%clk 0:01:24.4]} 37... g6 {[%clk 0:00:16.2]} 38. Ke5 {[%clk
0:01:22.3]} 38... Kc8 {[%clk 0:00:16.3]} 39. Rb3 {[%clk 0:01:19]} 39... b5
{[%clk 0:00:15.5]} 40. Rc3+ {[%clk 0:01:19.4]} 40... Kd8 {[%clk 0:00:16.9]} 41.
Rc7 {[%clk 0:01:07.5]} 1-0

[Event "*** Titled Tuesday 3|2 Blitz"]
[Site "Chess.com"]
[Date "2017.03.07"]
[Round "3"]
[White "SabinaFoisor"]
[Black "StellarChessPro"]
[Result "1-0"]
[WhiteElo "2193"]
[BlackElo "2341"]
[TimeControl "180+2"]
[EndTime "13:38:54 PST"]
[Termination "SabinaFoisor won by resignation"]

1. d4 {[%clk 0:03:02]} 1... d5 {[%clk 0:03:01]} 2. c4 {[%clk 0:03:02.7]} 2... e6
{[%clk 0:03:01.4]} 3. Nc3 {[%clk 0:03:03.5]} 3... c6 {[%clk 0:03:01.7]} 4. e3
{[%clk 0:02:51.8]} 4... Nf6 {[%clk 0:03:02.4]} 5. Nf3 {[%clk 0:02:51.9]} 5...
Nbd7 {[%clk 0:03:04]} 6. Qc2 {[%clk 0:02:53.1]} 6... Bd6 {[%clk 0:03:05.3]} 7.
g4 {[%clk 0:02:45.9]} 7... Nxg4 {[%clk 0:03:05.5]} 8. Rg1 {[%clk 0:02:46.6]}
8... Nxh2 {[%clk 0:03:06.8]} 9. Nxh2 {[%clk 0:02:46.8]} 9... Bxh2 {[%clk
0:03:07.5]} 10. Rxg7 {[%clk 0:02:47.9]} 10... Nf8 {[%clk 0:03:09.1]} 11. Rg2
{[%clk 0:02:47.7]} 11... Bd6 {[%clk 0:03:09.8]} 12. Bd2 {[%clk 0:02:42.3]} 12...
h5 {[%clk 0:03:07.4]} 13. O-O-O {[%clk 0:02:40.6]} 13... h4 {[%clk 0:03:08.8]}
14. e4 {[%clk 0:02:38.9]} 14... dxe4 {[%clk 0:03:08.6]} 15. Nxe4 {[%clk
0:02:36]} 15... Be7 {[%clk 0:03:09.8]} 16. Bf4 {[%clk 0:02:32.3]} 16... Ng6
{[%clk 0:03:05.2]} 17. Bh2 {[%clk 0:02:23.6]} 17... h3 {[%clk 0:03:04.4]} 18.
Rg1 {[%clk 0:02:22.7]} 18... Qa5 {[%clk 0:02:52.8]} 19. Kb1 {[%clk 0:02:15.6]}
19... e5 {[%clk 0:02:42.5]} 20. dxe5 {[%clk 0:02:00.9]} 20... Nxe5 {[%clk
0:02:39.8]} 21. Be2 {[%clk 0:01:45.3]} 21... Ng6 {[%clk 0:02:27]} 22. Bg4 {[%clk
0:01:20.3]} 22... Bxg4 {[%clk 0:02:14.1]} 23. Rxg4 {[%clk 0:01:22.2]} 23... Rd8
{[%clk 0:02:02.6]} 24. Rgg1 {[%clk 0:01:17.2]} 24... Rxd1+ {[%clk 0:02:00.3]}
25. Rxd1 {[%clk 0:01:19.1]} 25... O-O {[%clk 0:01:53.3]} 26. Rg1 {[%clk
0:01:14.1]} 26... Qf5 {[%clk 0:01:44.3]} 27. Ng3 {[%clk 0:00:50.3]} 27... Qxc2+
{[%clk 0:01:43]} 28. Kxc2 {[%clk 0:00:52.2]} 28... Bd6 {[%clk 0:01:41]} 29. Rh1
{[%clk 0:00:48.9]} 29... Ne5 {[%clk 0:01:22.9]} 30. Nf5 {[%clk 0:00:39.2]} 30...
Bb8 {[%clk 0:01:12.9]} 31. Rg1+ {[%clk 0:00:37.4]} 31... Kh8 {[%clk 0:01:14.1]}
32. Rg3 {[%clk 0:00:34.4]} 32... Kh7 {[%clk 0:01:04.9]} 33. Rxh3+ {[%clk
0:00:30.2]} 33... Kg6 {[%clk 0:01:06.1]} 34. Ne3 {[%clk 0:00:31.2]} 34... f5
{[%clk 0:01:00.2]} 35. Bf4 {[%clk 0:00:29.3]} 35... Ng4 {[%clk 0:00:50.9]} 36.
Bxb8 {[%clk 0:00:26.2]} 36... Rxb8 {[%clk 0:00:41.3]} 37. Rf3 {[%clk 0:00:24.7]}
37... Rf8 {[%clk 0:00:35.6]} 38. Nxg4 {[%clk 0:00:24.9]} 38... fxg4 {[%clk
0:00:33.8]} 39. Rxf8 {[%clk 0:00:25]} 1-0